[Event "11th Dolomiti Open 2020"]
[Site "Forni di Sopra"]
[Date "2020.10.03"]
[Round "9.10"]
[White "Ollari, Luca"]
[Black "Papale, Carmelo"]
[Result "1-0"]
[ECO "B20"]
[WhiteElo "1826"]
[BlackElo "1741"]
[Annotator "NA"]
[PlyCount "111"]
[EventDate "2020.09.26"]
[EventType "swiss"]
[EventCountry "ITA"]
[SourceTitle "playchess.com"]
[Source "ChessBase"]
[SourceQuality "1"]
[TimeControl "40/5400+30:1800+30"]

1. e4 {[%emt 0:00:00]} c5 {[%emt 0:00:00]} 2. a3 {[%emt 0:00:00]} d6 {[%emt 0:04:02]} 3. b4 {[%emt 0:00:03]} Qc7 {[%emt 0:01:44]} 4. Nc3 {[%emt 0:01:40]} e6 {[%emt 0:03:12]} 5. Nf3 {[%emt 0:02:14]} a6 {[%emt 0:00:32]} 6. Bb2 {[%emt 0:01:05]} Nf6 {[%emt 0:01:36]} 7. b5 {[%emt 0:05:52]} Be7 {[%emt 0:02:49]} 8. Be2 {[%emt 0:08:12]} Nbd7 {[%emt 0:05:09]} 9. a4 {[%emt 0:01:24]} a5 {[%emt 0:08:08]} 10. O-O {[%emt 0:00:35]} b6 {[%emt 0:00:04]} 11. d3 {[%emt 0:03:48]} Bb7 {[%emt 0:02:54]} 12. Nd2 {[%emt 0:00:04]} O-O {[%emt 0:01:21]} 13. f4 {[%emt 0:00:13]} Rad8 {[%emt 0:03:56]} 14. Bf3 {[%emt 0:00:37]} d5 {[%emt 0:07:52]} 15. e5 {[%emt 0:01:48]} Ne8 {[%emt 0:00:47]} 16. Qe1 {[%emt 0:01:45]} g6 {[%emt 0:04:36]} 17. Ne2 {[%emt 0:03:20]} Ng7 {[%emt 0:00:53]} 18. Ng3 {[%emt 0:00:08]} Bh4 {[%emt 0:01:07]} 19. Qe2 {[%emt 0:01:16]} f6 {[%emt 0:06:24]} 20. c4 {[%emt 0:14:53]} fxe5 {[%emt 0:07:12]} 21. cxd5 {[%emt 0:03:25]} exd5 {[%emt 0:01:06]} 22. fxe5 {[%emt 0:02:46]} Rde8 {[%emt 0:02:05]} 23. d4 {[%emt 0:05:18]} Ne6 {[%emt 0:04:06]} 24. Bg4 {[%emt 0:02:51]} cxd4 {[%emt 0:03:34]} 25. Bxe6+ {[%emt 0:02:37]} Rxe6 {[%emt 0:00:23]} 26. Qg4 {[%emt 0:02:34]} Qxe5 {[%emt 0:02:47]} 27. Bxd4 {[%emt 0:00:32]} Qd6 {[%emt 0:06:18]} 28. Qxh4 {[%emt 0:00:15]} Qb4 {[%emt 0:19:23]} 29. Nf3 {[%emt 0:02:14]} Re4 {[%emt 0:00:00]} 30. Nxe4 {[%emt 0:10:16]} dxe4 {[%emt 0:00:00]} 31. Qh3 {[%emt 0:01:29]} Rf7 {[%emt 0:00:00]} 32. Rfb1 {[%emt 0:08:02]} Qc4 {[%emt 0:00:00]} 33. Ng5 {[%emt 0:00:45]} Qxd4+ {[%emt 0:00:00]} 34. Kh1 {[%emt 0:00:02]} Re7 {[%emt 0:03:00]} 35. Rd1 {[%emt 0:00:28]} Qe5 {[%emt 0:00:00]} 36. Qb3+ {[%emt 0:01:17]} Kg7 {[%emt 0:00:00]} 37. Ne6+ {[%emt 0:01:47]} Kh8 {[%emt 0:00:00]} 38. Nd8 {[%emt 0:01:17]} Nc5 {[%emt 0:00:00]} 39. Nf7+ {[%emt 0:00:45]} Kg7 {[%emt 0:00:00]} 40. Nxe5 {[%emt 0:00:30]} Nxb3 {[%emt 0:00:00]} 41. Ra3 {[%emt 0:32:21]} Nc5 {[%emt 0:22:28]} 42. Nc4 {[%emt 0:00:33]} Re6 {[%emt 0:00:22]} 43. Kg1 {[%emt 0:07:22]} Nd3 {[%emt 0:03:53]} 44. Ne3 {[%emt 0:01:26]} Kf6 {[%emt 0:01:57]} 45. Rc3 {[%emt 0:00:00]} Nc5 {[%emt 0:00:00]} 46. Rc4 {[%emt 0:00:00]} h5 {[%emt 0:00:00]} 47. h4 {[%emt 0:00:00]} Ke5 {[%emt 0:00:00]} 48. g3 {[%emt 0:00:00]} Rf6 {[%emt 0:00:00]} 49. Rcd4 {[%emt 0:00:00]} Rf3 {[%emt 0:00:00]} 50. Nc4+ {[%emt 0:00:00]} Ke6 {[%emt 0:00:00]} 51. Rd6+ {[%emt 0:00:00]} Ke7 {[%emt 0:00:00]} 52. Rxg6 {[%emt 0:00:00]} Kf7 {[%emt 0:00:00]} 53. Ne5+ {[%emt 0:00:00]} Ke8 {[%emt 0:10:50]} 54. Rc1 {[%emt 0:07:11]} Nd3 {[%emt 0:00:30]} 55. Nc4 Nc5 {[%emt 0:00:30]} 56. Ne3 1-0